bitfinex/quotes_SOLUSD_20240916
["timestamp","ask_amount","ask_price","bid_price","bid_amount"]
[1726488211925,0.2562729,132.36,132.35,67.24625254]
[1726488212429,0.2562729,132.36,132.35,87.24625254]
[1726488214305,0.2562729,132.36,132.35,67.24625254]
[1726488214519,0.2562729,132.36,132.35,87.24625254]
[1726488214723,0.2562729,132.36,132.35,85.73576929]
[1726488215413,0.2562729,132.36,132.35,87.24617697]
[1726488216534,0.2562729,132.36,132.35,87.37166697]
[1726488216926,0.2562729,132.36,132.35,85.86125929]
[1726488222431,7.29e-05,132.36,132.35,70.472864]
[1726488222626,7.29e-05,132.36,132.35,85.86125929]
[1726488223556,7.29e-05,132.36,132.35,108.61125929]
[1726488224560,7.29e-05,132.36,132.35,85.86125929]
[1726488226758,0.2562729,132.4,132.39,26.437]
[1726488226933,0.2562729,132.4,132.39,65.60227929]
[1726488228957,0.2562729,132.4,132.39,50.213884]
[1726488231239,0.2562729,132.4,132.39,65.60227929]
[1726488235358,0.2562729,132.4,132.39,26.437]
[1726488235560,0.2562729,132.4,132.39,41.82539529]
[1726488236165,0.2562729,132.4,132.39,26.437]
[1726488236861,0.2562729,132.4,132.39,65.60227929]
[1726488237448,0.2562729,132.4,132.39,65.72776929]
[1726488241759,0.2562729,132.4,132.39,65.60227929]
[1726488242349,0.2562729,132.4,132.39,67.11232886]
[1726488242559,0.2562729,132.4,132.39,65.60227929]
[1726488243557,0.2562729,132.4,132.39,50.213884]
[1726488243738,0.2562729,132.4,132.39,65.60227929]
[1726488243933,0.2562729,132.4,132.39,41.82539529]
[1726488244138,0.2562729,132.4,132.39,26.437]
[1726488245938,0.2562729,132.4,132.39,50.213884]
[1726488247856,0.2562729,132.4,132.39,65.60227929]
[1726488248041,0.2562729,132.4,132.39,67.11256596]
[1726488249962,0.2562729,132.4,132.39,65.60227929]
[1726488251041,0.2562729,132.4,132.39,67.23782278]
[1726488251245,0.2562729,132.4,132.39,67.36331278]
[1726488252051,0.2562729,132.44,132.43,26.4289]
[1726488252362,0.2562729,132.44,132.43,67.10391606]
[1726488252546,0.2562729,132.44,132.43,65.59417929]
[1726488253755,0.2562729,132.44,132.43,50.205784]
[1726488259175,0.2562729,132.44,132.43,51.71573022]
[1726488259673,0.2562729,132.44,132.43,50.205784]
[1726488259855,0.2562729,132.44,132.43,65.59417929]
[1726488260057,0.2562729,132.44,132.43,67.10405935]
[1726488260850,0.2562729,132.44,132.43,65.59417929]
[1726488261244,0.2562729,132.44,132.43,50.205784]
[1726488270194,0.2562729,132.44,132.43,51.71572722]
[1726488271776,0.2562729,132.44,132.43,50.205784]
[1726488272160,0.2562729,132.44,132.43,26.4289]
[1726488276465,0.2562729,132.44,132.43,50.205784]
[1726488278393,0.2562729,132.44,132.43,51.71567786]
[1726488279496,0.2562729,132.44,132.43,50.205784]
[1726488279694,0.2562729,132.44,132.43,65.59417929]
[1726488280876,20.0,132.49,132.48,7.5483]
[1726488281077,0.5825038,132.49,132.48,7.5483]
[1726488281394,0.5825038,132.49,132.47,26.4206]
[1726488286798,20.5825038,132.49,132.44,18.8754]
[1726488287476,20.5825038,132.49,132.41,18.8798]
[1726488287477,0.12549,132.48,132.41,18.8798]
[1726488287792,7.5495,132.46,132.42,7.5513]
[1726488288017,24.0346,132.46,132.42,7.5513]
[1726488289465,20.12549,132.45,132.42,7.5513]
[1726488289686,7.5506,132.44,132.41,18.8798]
[1726488289887,7.67669,132.43,132.39,7.5533]
[1726488290065,7.67669,132.43,132.38,26.4373]
[1726488290274,7.67669,132.43,132.39,7.5532]
[1726488290771,35.82279,132.41,132.37,7.5545]
[1726488290976,0.12549,132.4,132.35,18.8884]
[1726488292201,0.12549,132.4,132.37,7.5545]
[1726488294607,0.12549,132.4,132.38,7.554]
[1726488296487,0.12549,132.4,132.37,7.5544]
[1726488296881,20.12549,132.4,132.36,7.555]
[1726488298280,27.67829,132.4,132.36,7.555]
[1726488300512,20.12549,132.4,132.37,7.5544]
[1726488303495,20.12549,132.4,132.35,18.8884]
[1726488304913,7.5535,132.39,132.35,26.4437]
[1726488305503,27.67849,132.4,132.36,7.555]
[1726488306517,20.12549,132.4,132.37,7.5543]
[1726488309513,7.5534,132.39,132.36,7.5549]
[1726488309690,27.67849,132.4,132.35,18.8884]
[1726488310515,27.67849,132.4,132.36,7.5547]
[1726488312616,27.67849,132.4,132.37,7.5545]
[1726488312617,20.12549,132.4,132.37,7.5545]
[1726488314831,0.12549,132.4,132.37,7.5545]
[1726488315208,20.12549,132.4,132.37,7.5545]
[1726488316109,15.7615818,132.41,132.39,7.5534]
[1726488316499,0.0642818,132.41,132.4,7.5528]
[1726488318898,0.0642818,132.41,132.36,18.8866]
[1726488319118,0.0642818,132.41,132.38,7.5537]
[1726488319513,0.0642818,132.41,132.39,7.5531]
[1726488319719,0.0642818,132.41,132.38,18.884]
[1726488320114,0.0642818,132.41,132.4,7.5528]
[1726488320824,0.0642818,132.41,132.39,7.5533]
[1726488323536,0.0642818,132.41,132.4,7.5528]
[1726488324032,0.0642818,132.41,132.39,7.5533]
[1726488334343,0.0642818,132.41,132.38,26.4379]
[1726488334732,7.6165818,132.41,132.38,26.4379]
[1726488334933,0.0642818,132.41,132.38,26.4379]
[1726488342660,0.0642818,132.41,132.4,7.5528]
[1726488343151,0.0642818,132.41,132.4,27.94531269]
[1726488343350,0.0642818,132.41,132.4,43.33370798]
[1726488344243,0.0642818,132.41,132.4,41.82329529]
[1726488345330,0.0642818,132.41,132.4,26.4349]
[1726488359381,0.0642818,132.41,132.4,18.8821]
[1726488360670,0.0642818,132.41,132.38,7.5539]
[1726488361146,0.0642818,132.41,132.37,18.8852]
[1726488361147,0.0642818,132.41,132.39,7.5534]
[1726488363158,0.0642818,132.41,132.37,18.8852]
[1726488363476,7.6165818,132.41,132.37,26.4393]
[1726488363659,0.0642818,132.41,132.37,26.4393]
[1726488363975,20.0642818,132.41,132.37,26.4393]
[1726488364478,20.0642818,132.41,132.38,7.5539]
[1726488365558,7.5528,132.4,132.37,18.8852]
[1726488367372,27.6166818,132.41,132.37,18.8852]
[1726488369660,27.6166818,132.41,132.37,26.4396]
[1726488369871,20.0642818,132.41,132.38,7.5538]
[1726488373365,0.0642818,132.41,132.4,7.5528]
[1726488375683,0.0642818,132.41,132.39,26.4361]
[1726488378113,0.0642818,132.41,132.39,18.8829]
[1726488379089,0.0642818,132.41,132.38,7.5538]
[1726488379298,7.6166818,132.41,132.37,7.5544]
[1726488380968,0.0642818,132.41,132.37,7.5544]
[1726488381172,0.0642818,132.41,132.39,7.5533]
[1726488386492,0.0642818,132.41,132.38,18.8847]
[1726488386689,0.0642818,132.41,132.38,26.4386]
[1726488389079,0.0642818,132.41,132.39,7.5533]
[1726488389593,0.0642818,132.41,132.4,7.5528]
[1726488398008,0.0642818,132.41,132.39,7.5532]
[1726488404109,0.0642818,132.41,132.38,18.8847]
[1726488404110,0.0642818,132.41,132.4,7.5528]
[1726488406220,0.0642818,132.41,132.39,7.5531]
[1726488408621,0.0642818,132.41,132.4,7.5528]
[1726488409222,0.0642818,132.41,132.4,26.4349]
[1726488421236,0.0642818,132.41,132.38,7.5534]
[1726488421611,0.0642818,132.41,132.39,7.5533]
[1726488421918,0.0642818,132.41,132.38,7.5537]
[1726488422733,0.0642818,132.41,132.39,7.5534]
[1726488425035,0.0642818,132.41,132.38,7.5539]
[1726488425420,0.0642818,132.41,132.39,7.5534]
[1726488429136,0.0642818,132.41,132.4,7.5528]
[1726488429501,0.0642818,132.41,132.4,24.45112544]
[1726488430020,0.0642818,132.41,132.4,24.45055535]
[1726488432418,0.0642818,132.41,132.4,22.94119529]
[1726488436338,0.0642818,132.41,132.4,23.06668529]
[1726488436537,0.0642818,132.41,132.4,24.57652822]
[1726488437810,0.0642818,132.41,132.4,23.06668529]
[1726488438172,0.0642818,132.41,132.4,22.94119529]
[1726488439727,0.0642818,132.41,132.4,24.57655381]
[1726488440512,8.18e-05,132.41,132.4,43.06668529]
[1726488445671,0.259111,132.45,132.44,26.4269]
[1726488445866,0.259111,132.45,132.44,43.32460459]
[1726488446033,0.259111,132.45,132.44,41.81529529]
[1726488446443,0.259111,132.45,132.44,26.4269]
[1726488450242,0.259111,132.45,132.44,63.45045912]
[1726488450429,0.259111,132.45,132.44,61.94078529]
[1726488450834,0.259111,132.45,132.44,63.45020641]
[1726488452344,0.259111,132.49,132.48,26.419]
[1726488452559,0.259111,132.49,132.48,41.80739529]
[1726488455354,0.259111,132.49,132.48,26.419]
[1726488457850,27.804511,132.53,132.49,7.5475]
[1726488457851,27.063622,132.53,132.49,7.5475]
[1726488465454,20.0,132.54,132.5,18.8678]
[1726488466346,7.625234,132.56,132.5,18.8678]
[1726488466567,20.0,132.55,132.5,18.8678]
[1726488466972,20.0,132.55,132.52,7.5455]
[1726488467573,0.081134,132.56,132.52,18.8646]
[1726488468167,0.081134,132.56,132.53,7.5453]
[1726488469270,0.081134,132.56,132.49,56.6051]
[1726488469459,7.5446,132.55,132.51,7.5465]
[1726488469772,7.5449,132.54,132.5,7.547]
[1726488471151,7.5444,132.55,132.51,7.5465]
[1726488471356,0.081134,132.56,132.51,18.8663]
[1726488472349,20.0,132.55,132.52,7.546]
[1726488477284,7.5443,132.55,132.51,18.8663]
[1726488477488,7.5443,132.55,132.51,26.4125]
[1726488478989,0.081134,132.56,132.51,18.8663]
[1726488479382,0.081134,132.56,132.53,7.5453]
[1726488479872,0.081134,132.56,132.54,9.05377972]
[1726488480070,0.081134,132.56,132.54,7.5448]
[1726488480689,0.081134,132.56,132.55,9.0530603]
[1726488480865,0.081134,132.56,132.55,7.5443]
[1726488482294,0.081134,132.56,132.54,7.5447]
[1726488482673,0.081134,132.56,132.55,7.5443]
[1726488483576,0.081134,132.56,132.53,18.8634]
[1726488485173,0.081134,132.56,132.53,26.4084]
[1726488485676,0.081134,132.56,132.54,7.5448]
[1726488486575,0.081134,132.56,132.55,7.5443]
[1726488494378,0.081134,132.56,132.55,26.4051]
[1726488494797,0.081134,132.56,132.55,63.30192958]
[1726488495309,0.081134,132.56,132.55,61.79349529]
[1726488497497,0.081134,132.56,132.55,63.30181548]
[1726488498484,0.081134,132.56,132.55,61.79349529]
[1726488499608,0.081134,132.56,132.55,63.30181818]
[1726488500383,0.081134,132.56,132.55,26.4051]
[1726488504499,0.081134,132.56,132.55,41.79349529]
[1726488508383,0.081134,132.56,132.55,26.4051]
[1726488509610,0.081134,132.56,132.55,41.79349529]
[1726488511809,0.081134,132.56,132.55,26.4051]
[1726488520519,7.5416,132.6,132.56,7.5434]
[1726488520520,7.7978664,132.6,132.56,7.5434]
[1726488520734,7.9924452,132.6,132.56,7.5434]
[1726488523016,0.4508452,132.6,132.57,7.543]
[1726488525798,0.4508452,132.6,132.57,26.4009]
[1726488526129,0.4508452,132.6,132.58,7.5423]
[1726488526617,0.4508452,132.6,132.57,26.4009]
[1726488530304,0.4508452,132.6,132.58,7.5425]
[1726488531528,0.4508452,132.6,132.57,26.4009]
[1726488531729,0.4508452,132.6,132.58,7.5421]
[1726488532229,0.4508452,132.6,132.59,7.542]
[1726488532408,0.4508452,132.6,132.58,7.5424]
[1726488534518,0.4508452,132.6,132.57,26.4009]
[1726488534519,7.9922452,132.6,132.57,26.4009]
[1726488534721,0.4508452,132.6,132.57,26.4009]
[1726488539939,0.4508452,132.6,132.58,7.5424]
[1726488540147,0.4508452,132.6,132.59,7.542]
[1726488541411,0.4508452,132.6,132.58,7.5423]
[1726488542123,0.4508452,132.6,132.57,26.4007]
[1726488544315,0.4508452,132.6,132.59,41.78549529]
[1726488545217,0.4508452,132.6,132.59,47.56098993]
[1726488547650,0.4508452,132.6,132.59,41.78549529]
[1726488547953,0.4508452,132.6,132.59,47.56038283]
[1726488548320,0.4508452,132.6,132.59,41.78549529]
[1726488548951,0.4508452,132.6,132.59,26.3971]
[1726488549929,0.4508452,132.6,132.59,41.78549529]
[1726488550636,0.4508452,132.6,132.59,26.3971]
[1726488553148,0.4508452,132.6,132.59,27.20911652]
[1726488555471,0.4508452,132.6,132.59,26.3971]
[1726488562150,0.4508452,132.6,132.59,41.78549529]
[1726488565076,0.4508452,132.6,132.59,26.3971]
[1726488565275,0.4508452,132.6,132.59,41.78549529]
[1726488571894,0.4508452,132.6,132.59,26.3971]
[1726488572258,0.4508452,132.6,132.59,41.78549529]
[1726488574386,0.4508452,132.6,132.59,26.3971]
[1726488574703,0.4508452,132.6,132.59,41.78549529]
[1726488577214,0.4508452,132.6,132.59,26.3971]
[1726488577506,0.4508452,132.6,132.59,41.78549529]
[1726488584588,0.4508452,132.6,132.59,26.3971]
[1726488586792,0.4508452,132.6,132.59,18.8551]
[1726488586989,0.4508452,132.6,132.59,26.3971]
[1726488589609,0.4508452,132.6,132.59,18.8551]
[1726488592829,0.4508452,132.6,132.59,26.3971]
[1726488600239,0.4508452,132.6,132.59,18.8551]
[1726488600446,0.4508452,132.6,132.57,26.4009]
[1726488601325,0.4508452,132.6,132.58,7.5425]
[1726488605435,0.4508452,132.6,132.57,18.8579]
[1726488605436,0.4508452,132.6,132.59,7.542]
[1726488607124,0.4508452,132.6,132.58,7.5423]
[1726488609039,0.4508452,132.6,132.53,23.025]
[1726488609339,19.3046452,132.6,132.54,5.77633315]
[1726488609519,7.5437,132.56,132.52,7.5459]
[1726488609919,7.5432,132.57,132.53,7.5454]
[1726488610309,7.5438,132.56,132.52,7.5458]
[1726488610726,7.5438,132.56,132.51,26.4117]
[1726488610929,7.5445,132.55,132.51,26.4117]
[1726488612121,7.7384788,132.56,132.51,26.4117]
[1726488613139,7.5446,132.55,132.51,18.8653]
[1726488613843,7.5449,132.54,132.5,7.5471]
[1726488614844,7.5444,132.55,132.5,7.5471]
[1726488615851,7.5449,132.54,132.5,7.5471]
[1726488616227,7.5454,132.53,132.49,7.5476]
[1726488616422,7.5454,132.53,132.48,26.4181]
[1726488616725,7.5461,132.52,132.48,26.4181]
[1726488616943,7.5461,132.52,132.48,18.8699]
[1726488617248,7.5461,132.52,132.48,26.418]
[1726488617838,23.5287,132.53,132.48,26.418]
[1726488620330,7.546,132.52,132.48,26.418]
[1726488621052,23.5287,132.53,132.48,26.418]
[1726488621431,7.546,132.52,132.48,26.418]
[1726488621724,7.546,132.52,132.48,18.8699]
[1726488622945,20.0,132.52,132.46,0.0616876]
[1726488623260,70.0,132.52,132.46,0.0616876]
[1726488624335,7.5484,132.48,132.46,0.0616876]
[1726488624944,7.5477,132.49,132.46,0.0616876]
[1726488631234,7.5472,132.5,132.46,0.0616876]
[1726488632044,8.86372755,132.51,132.46,7.6105876]
[1726488632852,7.5476,132.5,132.46,7.6105876]
[1726488633575,7.5476,132.5,132.46,0.0616876]
[1726488633755,7.5476,132.5,132.46,7.6109876]
[1726488633951,8.86372755,132.51,132.47,7.5487]
[1726488634273,1.31702755,132.51,132.48,7.5481]
[1726488634443,7.5456,132.53,132.48,7.5481]
[1726488634771,7.5456,132.53,132.49,7.5476]
[1726488634949,7.546,132.52,132.48,26.4186]
[1726488636463,7.5456,132.53,132.49,7.5476]
[1726488638280,8.86172447,132.54,132.5,7.547]
[1726488638655,7.5449,132.54,132.5,7.547]
[1726488642685,7.5454,132.53,132.49,7.5476]
[1726488645085,20.04583978,132.56,132.48,25.3674]
[1726488645086,18.8612,132.55,132.48,25.3674]
[1726488645276,7.547,132.51,132.47,23.7913]
[1726488645474,7.547,132.51,132.47,16.2427]
[1726488646471,7.5472,132.5,132.46,7.6108876]
[1726488649288,7.5468,132.51,132.46,7.6108876]
[1726488649973,18.8612,132.55,132.48,7.5481]
[1726488649974,7.546,132.52,132.48,7.5481]
[1726488652291,7.5467,132.51,132.47,26.4202]
[1726488652662,7.5461,132.52,132.48,7.5482]
[1726488657268,7.5461,132.52,132.49,7.5477]
[1726488657468,7.5456,132.53,132.49,7.5477]
[1726488659092,7.5449,132.54,132.5,7.547]
[1726488659574,7.5449,132.54,132.49,26.4163]
[1726488660188,8.8616435,132.54,132.49,26.4163]
[1726488660572,8.8616435,132.54,132.49,18.8687]
[1726488661893,7.5449,132.54,132.49,18.8687]
[1726488662280,7.5449,132.54,132.49,26.416]
[1726488664376,7.5463,132.52,132.48,6.509]
[1726488665205,88.90643942,132.56,132.48,6.509]
[1726488665206,7.5468,132.51,132.48,6.509]
[1726488679423,7.5462,132.52,132.48,6.509]
[1726488679807,7.5466,132.51,132.48,6.509]
[1726488681004,7.5473,132.5,132.48,6.509]
[1726488684037,7.5473,132.5,132.47,15.3786]
[1726488684706,20.0,132.51,132.46,0.0616876]
[1726488684908,7.5483,132.48,132.46,0.0616876]
[1726488690419,7.5479,132.49,132.46,0.0616876]
[1726488691732,7.5472,132.5,132.46,0.0616876]
[1726488692837,27.5467,132.51,132.46,26.4843876]
[1726488693038,27.5467,132.51,132.47,7.5488]
[1726488694140,27.5467,132.51,132.46,26.4844876]
[1726488694346,27.5467,132.51,132.47,5.78491661]
[1726488694635,27.5467,132.51,132.46,26.4844876]
[1726488695134,27.5467,132.51,132.47,5.78525713]
[1726488695324,27.5467,132.51,132.46,26.4844876]
[1726488696352,27.5467,132.51,132.47,7.5488]
[1726488696639,20.0,132.51,132.47,7.5488]
[1726488701550,7.5462,132.52,132.47,7.5488]
[1726488701923,1.3167298,132.55,132.48,33.9309]
[1726488702121,21.3167298,132.55,132.49,13.8891]
[1726488702349,7.5454,132.54,132.49,13.8891]
[1726488702550,7.5455,132.53,132.49,13.8891]
[1726488703059,7.5455,132.53,132.49,6.3415]
[1726488705522,7.5455,132.53,132.49,13.8891]
[1726488705758,7.545,132.54,132.49,13.8891]
[1726488706237,7.5455,132.53,132.49,6.3415]
[1726488709653,7.546,132.52,132.49,6.3415]
[1726488710334,7.5466,132.51,132.49,6.3415]
[1726488712459,7.5466,132.51,132.48,15.0603]
[1726488713335,7.5472,132.5,132.46,6.3131876]
[1726488714133,7.5468,132.51,132.46,13.8620876]
[1726488723268,1.31682073,132.54,132.48,7.5479]
[1726488723574,7.5458,132.53,132.49,9.05673368]
[1726488724572,7.5458,132.53,132.49,7.5474]
[1726488726373,20.0,132.55,132.5,7.5471]
[1726488726547,0.1945788,132.56,132.53,7.5453]
[1726488726868,0.1945788,132.56,132.52,7.5459]
[1726488728374,0.1945788,132.56,132.53,7.5453]
[1726488729471,0.1945788,132.56,132.52,9.05471867]
[1726488729687,0.1945788,132.56,132.52,7.5458]
[1726488730175,0.1945788,132.56,132.52,9.05472481]
[1726488730877,0.1945788,132.56,132.52,7.5458]
[1726488732672,0.1945788,132.56,132.53,34.25179529]
[1726488732985,0.1945788,132.56,132.55,7.5443]
[1726488733154,0.1945788,132.56,132.55,9.05194275]
[1726488734678,0.1945788,132.56,132.55,7.5443]
[1726488738586,0.1945788,132.56,132.55,30.65172434]
[1726488738884,0.1945788,132.56,132.55,47.09042434]
[1726488739082,0.1945788,132.56,132.55,67.09042434]
[1726488740161,0.2562664,132.6,132.59,26.3971]
[1726488740363,0.2562664,132.6,132.59,43.29350371]
[1726488741780,0.2562664,132.6,132.59,66.11030371]
[1726488741960,0.2562664,132.6,132.59,64.60229529]
[1726488742160,0.2562664,132.6,132.59,86.10989687]
[1726488742462,0.2562664,132.6,132.59,84.60229529]
[1726488744089,0.2562664,132.6,132.59,86.10982123]
[1726488746766,0.2562664,132.6,132.59,84.60229529]
[1726488747883,0.2562664,132.6,132.59,86.10982428]
[1726488748890,0.2562664,132.6,132.59,84.60229529]
[1726488755994,0.2562664,132.6,132.59,69.2139]
[1726488756367,0.2562664,132.6,132.59,84.60229529]
[1726488756796,0.2562664,132.6,132.59,86.1096836]
[1726488761872,0.2562664,132.6,132.59,84.60229529]
[1726488762289,0.2562664,132.6,132.59,86.10994014]
[1726488763571,0.2562664,132.6,132.59,84.60229529]
[1726488763771,0.2562664,132.6,132.59,69.2139]
[1726488763971,0.2562664,132.6,132.59,84.60229529]
[1726488765573,0.2562664,132.6,132.59,86.10993986]
[1726488766082,0.2562664,132.6,132.59,84.60229529]
[1726488768895,0.2562664,132.6,132.59,61.78549529]
[1726488775801,0.2562664,132.6,132.59,63.29329551]
[1726488778600,0.2562664,132.6,132.59,26.3971]
[1726488778802,0.2562664,132.6,132.59,18.8551]
[1726488779489,0.2562664,132.6,132.57,7.5429]
[1726488779816,0.2562664,132.6,132.58,7.5425]
[1726488782818,0.2562664,132.6,132.59,9.05024128]
[1726488784121,0.2562664,132.6,132.59,24.43863657]
[1726488784409,0.2562664,132.6,132.59,28.68900608]
[1726488786614,0.2562664,132.6,132.59,22.93039529]
[1726488786991,0.2562664,132.6,132.59,28.68956291]
[1726488787511,0.2562664,132.6,132.59,13.30116762]
[1726488788191,0.2562664,132.6,132.59,13.30400166]
[1726488790013,0.2562664,132.6,132.59,13.30341984]
[1726488792313,0.2562664,132.6,132.59,28.69181513]
[1726488793019,0.2562664,132.6,132.59,22.93039529]
[1726488793186,0.2562664,132.6,132.59,28.69001729]
[1726488794720,0.2562664,132.6,132.59,30.19790372]
[1726488795607,0.2562664,132.6,132.59,28.69001729]
[1726488796911,0.2562664,132.6,132.59,28.68950631]
[1726488797802,0.2562664,132.6,132.59,30.19671275]
[1726488798816,0.2562664,132.6,132.59,28.68950631]
[1726488800627,0.2562664,132.6,132.59,22.93039529]
[1726488800923,0.2562664,132.6,132.59,28.68907185]
[1726488802723,0.2562664,132.6,132.59,30.19676003]
[1726488804021,0.2562664,132.6,132.59,28.68907185]
[1726488805120,0.2562664,132.6,132.59,13.30067656]
[1726488807818,0.2562664,132.6,132.59,13.30241344]
[1726488808220,0.2562664,132.6,132.59,30.19885853]
[1726488810528,0.2562664,132.6,132.59,28.69080873]
[1726488811424,0.2562664,132.6,132.59,30.19840099]
[1726488811611,0.2562664,132.6,132.59,28.69039961]
[1726488813099,0.2562664,132.6,132.59,14.8100034]
[1726488813305,0.2562664,132.6,132.58,26.3984]
[1726488813500,0.2562664,132.6,132.58,18.856]
[1726488814724,15.3759664,132.6,132.55,18.8605]
[1726488814922,15.3759664,132.6,132.56,5.76484624]
[1726488815232,15.3759664,132.6,132.55,18.8605]
[1726488815438,7.542,132.59,132.55,26.4044]
[1726488815612,15.3759664,132.6,132.57,7.5426]
[1726488816211,15.3759664,132.6,132.57,26.4004]
[1726488816620,15.3759664,132.6,132.57,27.9086621]
[1726488817323,22.9175664,132.6,132.57,18.8578]
[1726488817638,22.9175664,132.6,132.56,7.5436]
[1726488819941,7.5421,132.59,132.55,7.5441]
[1726488820442,22.9174664,132.6,132.56,7.5435]
[1726488825536,22.9174664,132.6,132.57,1.50766716]
[1726488826415,22.9174664,132.6,132.57,9.05076716]
[1726488827745,22.9174664,132.6,132.57,1.50766716]
[1726488828041,22.9174664,132.6,132.56,26.4028]
[1726488828236,15.3759664,132.6,132.57,7.5428]
[1726488831822,15.3759664,132.6,132.58,1.50830421]
[1726488833344,15.3759664,132.6,132.58,9.05080421]
[1726488833637,15.3759664,132.6,132.58,7.5425]
[1726488835828,0.2562664,132.6,132.58,7.5425]
[1726488836237,0.2562664,132.6,132.57,7.543]
[1726488841037,0.2562664,132.6,132.58,9.05074904]
[1726488842121,0.2562664,132.6,132.59,1.50813528]
[1726488842824,0.2562664,132.6,132.59,9.05013528]
[1726488843235,0.2562664,132.6,132.59,26.3971]
[1726488843434,0.2562664,132.6,132.59,41.78549529]
[1726488844946,0.2562664,132.6,132.59,47.54416495]
[1726488846046,0.2562664,132.6,132.59,26.3971]
[1726488846422,0.2562664,132.6,132.58,7.5425]
[1726488848538,0.2562664,132.6,132.57,7.5431]
[1726488848935,7.7977664,132.6,132.56,26.4017]
[1726488849742,7.7977664,132.6,132.57,7.5431]
[1726488850244,0.2562664,132.6,132.57,7.5431]
[1726488850450,0.2562664,132.6,132.57,9.05140575]
[1726488851143,7.7981664,132.6,132.56,26.4018]
[1726488851534,7.542,132.59,132.56,26.4018]
[1726488852741,7.5426,132.58,132.53,34.25069529]
[1726488852937,7.5426,132.58,132.54,13.31327115]
[1726488853127,7.5426,132.58,132.55,5.76887115]
[1726488853329,7.5426,132.58,132.54,7.5444]
[1726488853556,7.5426,132.58,132.55,5.7696357]
[1726488853744,7.5432,132.57,132.53,26.4073]
[1726488854044,7.5432,132.57,132.54,5.76971205]
[1726488854261,7.5427,132.58,132.54,7.5447]
[1726488854747,7.5422,132.59,132.55,9.05288639]
[1726488855320,7.5437,132.56,132.52,7.5458]
[1726488855540,7.5433,132.57,132.53,13.31776046]
[1726488855824,7.5433,132.57,132.53,7.5454]
[1726488856739,7.5433,132.57,132.52,26.4106]
[1726488856932,7.5433,132.57,132.53,5.7703247]
[1726488857132,7.5433,132.57,132.52,26.4106]
[1726488857333,7.5433,132.57,132.53,5.77055152]
[1726488857550,7.5433,132.57,132.52,26.4106]
[1726488857750,7.5433,132.57,132.53,5.77006539]
[1726488857949,7.5438,132.56,132.52,26.4106]
[1726488858135,7.5438,132.56,132.53,5.77007291]
[1726488858335,7.5438,132.56,132.52,26.4106]
[1726488858762,7.5445,132.55,132.49,34.25649529]
[1726488859058,7.5449,132.54,132.5,13.3193709]
[1726488859253,7.5449,132.54,132.51,5.7723709]
[1726488859434,7.5449,132.54,132.5,7.547]
[1726488859632,7.5449,132.54,132.51,5.77236979]
[1726488859835,7.5449,132.54,132.5,7.547]
[1726488860056,7.5449,132.54,132.51,5.7723379]
[1726488860230,7.5449,132.54,132.5,7.547]
[1726488861650,7.5455,132.53,132.49,26.4157]
[1726488861845,7.5455,132.53,132.5,5.77247013]
[1726488862146,7.5455,132.53,132.49,26.4157]
[1726488862546,18.8614,132.55,132.47,7.5485]
[1726488862851,7.5472,132.5,132.48,5.77496761]
[1726488863049,7.5472,132.5,132.46,19.1287664]
[1726488863258,7.5472,132.5,132.47,5.77587961]
[1726488863460,7.5472,132.5,132.48,5.77587961]
[1726488863634,7.5472,132.5,132.46,19.1287664]
[1726488863835,7.5467,132.51,132.47,5.77590096]
[1726488864044,7.5467,132.51,132.48,5.77590096]
[1726488864238,7.5467,132.51,132.47,5.77597197]
[1726488864470,7.5467,132.51,132.46,26.6777664]
[1726488866541,7.5473,132.5,132.46,26.6777664]
[1726488869171,20.0,132.52,132.47,7.5485]
[1726488869475,7.5469,132.51,132.47,7.5485]
[1726488870149,7.5469,132.51,132.46,26.6780664]
[1726488870461,7.5472,132.5,132.46,26.6780664]
[1726488872837,7.547,132.51,132.47,7.5488]
[1726488875758,20.0,132.52,132.46,19.1287664]
[1726488876937,7.5461,132.52,132.48,7.5479]
[1726488879070,23.6504,132.53,132.49,7.5476]
[1726488879456,20.0,132.54,132.5,18.8672]
[1726488880066,7.57390775,132.56,132.5,18.8672]
[1726488880264,7.545,132.54,132.5,26.4142]